fUSD/lending_fUSD_20241121
["ID","MTS","AMOUNT","RATE_DAILY","PERIOD"]
[342927078,1732209078470,-500.0,0.00039452,11]
[342927079,1732209078479,-500.0,0.00039452,11]
[342927080,1732209078490,-2570.19,0.00039452,11]
[342927081,1732209078500,-13167.65,0.00039452,2]
[342927082,1732209078510,-500.0,0.00039452,11]
[342927083,1732209078520,-500.0,0.00039452,11]
[342927084,1732209078529,-685.7,0.00039452,11]
[342927085,1732209078539,-500.0,0.00039452,11]
[342927086,1732209078549,-500.0,0.00039452,11]
[342927087,1732209078559,-500.0,0.00039452,11]
[342927088,1732209078568,-692.64,0.00039452,11]
[342927089,1732209078578,-500.0,0.00039452,11]
[342927090,1732209078587,-500.0,0.00039452,11]
[342927091,1732209078597,-500.0,0.00039452,11]
[342927092,1732209078606,-300.0,0.00039452,11]
[342927093,1732209078615,-500.0,0.00039452,11]
[342927094,1732209078624,-500.0,0.00039452,11]
[342927095,1732209078635,-1040.7,0.00039452,11]
[342927096,1732209078644,-503.62,0.00039452,11]
[342927097,1732209078654,-500.0,0.00039452,11]
[342927098,1732209078663,-500.0,0.00039452,11]
[342927099,1732209078672,-500.0,0.00039452,11]
[342927100,1732209078683,-1256.91,0.00039452,11]
[342927101,1732209078692,-500.0,0.00039452,120]
[342927102,1732209078701,-500.0,0.00039452,11]
[342927103,1732209078711,-500.0,0.00039452,11]
[342927104,1732209078723,-644.06,0.00039452,11]
[342927105,1732209078733,-500.0,0.00039452,11]
[342927106,1732209078742,-500.0,0.00039452,11]
[342927107,1732209078751,-1313.76,0.00039452,11]
[342927108,1732209078761,-589.40102349,0.00039452,11]
[342927109,1732209078771,-507.04,0.00039452,11]
[342927110,1732209078780,-500.0,0.00039452,11]
[342927111,1732209078790,-500.0,0.00039452,11]
[342927112,1732209078799,-500.0,0.00039452,11]
[342927113,1732209078808,-500.0,0.00039452,11]
[342927114,1732209078818,-500.0,0.00039452,11]
[342927115,1732209078827,-1226.07,0.00039452,11]
[342927116,1732209078837,-500.0,0.00039452,11]
[342927117,1732209078847,-500.0,0.00039452,11]
[342927118,1732209078856,-500.0,0.00039452,11]
[342927119,1732209078866,-500.0,0.00039452,11]
[342927120,1732209078876,-628.62,0.00039452,11]
[342927121,1732209078885,-500.0,0.00039452,11]
[342927122,1732209078895,-500.0,0.00039452,11]
[342927123,1732209078905,-852.45,0.00039452,11]
[342927124,1732209078915,-787.31,0.00039452,11]
[342927125,1732209078924,-1429.93,0.00039452,11]
[342927126,1732209078934,-2495.52,0.00039452,11]
[342927127,1732209078943,-398.84842096,0.00039452,11]
[342927128,1732209078953,-500.0,0.00039452,11]
[342927129,1732209078963,-500.0,0.00039452,11]
[342927130,1732209078978,-500.0,0.00039452,11]
[342927131,1732209078991,-500.0,0.00039452,11]
[342927132,1732209079000,-550.28,0.00039452,11]
[342927133,1732209079010,-500.0,0.00039452,11]
[342927134,1732209079018,-500.0,0.00039452,11]
[342927135,1732209079028,-500.0,0.00039452,11]
[342927136,1732209079037,-500.0,0.00039452,11]
[342927137,1732209079046,-1672.68,0.00039452,11]
[342927138,1732209079056,-500.0,0.00039452,11]
[342927139,1732209079067,-500.0,0.00039452,11]
[342927140,1732209079076,-233.3,0.00039452,11]
[342927141,1732209079085,-500.0,0.00039452,11]
[342927142,1732209079095,-500.0,0.00039452,11]
[342927143,1732209079104,-500.0,0.00039452,11]
[342927144,1732209079113,-500.0,0.00039452,11]
[342927145,1732209079123,-500.0,0.00039452,11]
[342927146,1732209079132,-500.0,0.00039452,11]
[342927147,1732209079141,-500.0,0.00039452,11]
[342927148,1732209079151,-500.0,0.00039452,11]
[342927149,1732209079160,-535.23,0.00039452,11]
[342927150,1732209079170,-540.51,0.00039452,11]
[342927151,1732209079179,-2479.94,0.00039452,11]
[342927152,1732209079188,-500.0,0.00039452,11]
[342927153,1732209079197,-500.0,0.00039452,11]
[342927154,1732209079206,-500.0,0.00039452,11]
[342927155,1732209079215,-500.0,0.00039452,11]
[342927156,1732209079227,-500.0,0.00039452,11]
[342927157,1732209079236,-579.21,0.00039452,11]
[342927158,1732209079245,-556.44,0.00039452,11]
[342927159,1732209079255,-500.0,0.00039452,11]
[342927160,1732209079264,-1795.76,0.00039452,11]
[342927161,1732209079274,-500.0,0.00039452,11]
[342927162,1732209079284,-1015.2,0.00039452,11]
[342927163,1732209079294,-500.0,0.00039452,11]
[342927164,1732209079303,-500.0,0.00039452,11]
[342927165,1732209079312,-2148.5,0.00039452,11]
[342927166,1732209079321,-2009.83,0.00039452,11]
[342927167,1732209079331,-500.0,0.00039452,11]
[342927168,1732209079340,-2980.46,0.00039452,11]
[342927169,1732209079349,-500.0,0.00039452,11]
[342927170,1732209079359,-580.37,0.00039452,11]
[342927171,1732209079368,-500.0,0.00039452,11]
[342927172,1732209079378,-500.0,0.00039452,11]
[342927173,1732209079387,-500.0,0.00039452,11]
[342927174,1732209079397,-12761.51,0.00039452,11]
[342927175,1732209079406,-500.0,0.00039452,11]
[342927176,1732209079417,-244.81,0.00039452,11]
[342927177,1732209079427,-313.84844725,0.00039452,11]
[342927178,1732209079439,-500.0,0.00039452,11]
[342927179,1732209079448,-922.76,0.00039452,11]
[342927180,1732209079459,-952.81,0.00039452,11]
[342927181,1732209079471,-500.0,0.00039452,11]
[342927182,1732209079480,-500.0,0.00039452,11]
[342927183,1732209079491,-500.0,0.00039452,11]
[342927184,1732209079500,-2728.46,0.00039452,11]
[342927185,1732209079510,-929.41,0.00039452,11]
[342927186,1732209079519,-1595.23,0.00039452,11]
[342927187,1732209079529,-500.0,0.00039452,11]
[342927188,1732209079538,-500.0,0.00039452,11]
[342927189,1732209079548,-500.0,0.00039452,11]
[342927190,1732209079558,-500.0,0.00039452,11]
[342927191,1732209079567,-500.0,0.00039452,11]
[342927192,1732209079577,-1432.21,0.00039452,11]
[342927193,1732209079586,-500.0,0.00039452,11]
[342927194,1732209079595,-500.0,0.00039452,11]
[342927195,1732209079605,-591.52672013,0.00039452,11]
[342927196,1732209079619,-942.0,0.00039452,11]
[342927197,1732209079631,-500.0,0.00039452,11]
[342927198,1732209079641,-500.0,0.00039452,11]
[342927199,1732209079650,-516.79,0.00039452,11]
[342927200,1732209079659,-500.0,0.00039452,11]
[342927201,1732209079668,-627.44,0.00039452,11]
[342927202,1732209079677,-500.0,0.00039452,11]
[342927203,1732209079686,-610.83,0.00039452,11]
[342927204,1732209079696,-500.0,0.00039452,11]
[342927205,1732209079705,-1252.79,0.00039452,11]
[342927206,1732209079715,-500.0,0.00039452,11]
[342927207,1732209079728,-1321.17,0.00039452,11]
[342927208,1732209079737,-500.0,0.00039452,11]
[342927209,1732209079747,-520.13,0.00039452,11]
[342927210,1732209079756,-512.26,0.00039452,11]
[342927211,1732209079766,-741.51,0.00039452,11]
[342927212,1732209079921,-1633.8,0.00039452,11]
[342927213,1732209079930,-500.0,0.00039452,11]
[342927214,1732209079940,-500.0,0.00039452,11]
[342927215,1732209079949,-500.0,0.00039452,11]
[342927216,1732209079958,-500.0,0.00039452,11]
[342927217,1732209079970,-500.0,0.00039452,11]
[342927218,1732209079980,-500.0,0.00039452,11]
[342927219,1732209079990,-734.45,0.00039452,11]
[342927220,1732209080000,-960.64,0.00039452,11]
[342927221,1732209080009,-616.56,0.00039452,11]
[342927222,1732209080019,-500.0,0.00039452,11]
[342927223,1732209080030,-752.12,0.00039452,11]
[342927224,1732209080039,-500.0,0.00039452,11]
[342927225,1732209080048,-758.7,0.00039452,11]
[342927226,1732209080057,-1619.83,0.00039452,11]
[342927227,1732209080067,-3730.7,0.00039452,11]
[342927228,1732209080076,-500.0,0.00039452,11]
[342927229,1732209080086,-875.11,0.00039452,11]
[342927230,1732209080095,-512.34,0.00039452,11]
[342927231,1732209080105,-604.53,0.00039452,11]
[342927232,1732209080114,-500.0,0.00039452,11]
[342927233,1732209080123,-4315.98,0.00039452,11]
[342927234,1732209080132,-500.0,0.00039452,11]
[342927235,1732209080141,-590.5,0.00039452,11]
[342927236,1732209080150,-500.0,0.00039452,11]
[342927237,1732209080159,-500.0,0.00039452,11]
[342927238,1732209080168,-1367.1,0.00039452,11]
[342927239,1732209080177,-500.0,0.00039452,11]
[342927240,1732209080187,-438.42017638,0.00039452,11]
[342927241,1732209080196,-500.0,0.00039452,11]
[342927242,1732209080205,-500.0,0.00039452,7]
[342927243,1732209080215,-500.0,0.00039452,11]
[342927244,1732209080227,-1811.26,0.00039452,11]
[342927245,1732209080236,-510.57,0.00039452,11]
[342927246,1732209080245,-500.0,0.00039452,11]
[342927247,1732209080254,-659.28,0.00039452,11]
[342927248,1732209080263,-1533.44,0.00039452,11]
[342927249,1732209080272,-500.0,0.00039452,11]
[342927250,1732209080281,-779.74,0.00039452,11]
[342927251,1732209080290,-3341.95,0.00039452,11]
[342927252,1732209080298,-500.0,0.00039452,11]
[342927253,1732209080307,-1362.55,0.00039452,11]
[342927254,1732209080317,-500.0,0.00039452,11]
[342927255,1732209080326,-1720.08,0.00039452,11]
[342927256,1732209080335,-500.0,0.00039452,11]
[342927257,1732209080344,-1471.05,0.00039452,11]
[342927258,1732209080353,-1498.59,0.00039452,11]
[342927259,1732209080362,-792.02,0.00039452,11]
[342927260,1732209080372,-1182.34,0.00039452,11]
[342927261,1732209080381,-837.52,0.00039452,11]
[342927262,1732209080390,-1211.37,0.00039452,11]
[342927263,1732209080400,-500.0,0.00039452,11]
[342927264,1732209080411,-500.0,0.00039452,11]
[342927265,1732209080423,-500.0,0.00039452,11]
[342927266,1732209080432,-500.0,0.00039452,11]
[342927267,1732209080442,-500.0,0.00039452,11]
[342927268,1732209080452,-500.0,0.00039452,11]
[342927269,1732209080464,-770.8,0.00039452,11]
[342927270,1732209080479,-670.46,0.00039452,11]
[342927271,1732209080488,-500.0,0.00039452,11]
[342927272,1732209080498,-500.0,0.00039452,11]
[342927273,1732209080508,-500.0,0.00039452,11]
[342927274,1732209080518,-500.0,0.00039452,11]
[342927275,1732209080528,-500.0,0.00039452,11]
[342927276,1732209080538,-1008.56,0.00039452,11]
[342927277,1732209080548,-260.35445454,0.00039452,2]
[342927278,1732209080558,-500.0,0.00039452,11]
[342927279,1732209080568,-500.0,0.00039452,11]
[342927280,1732209080578,-500.0,0.00039452,11]
[342927281,1732209080589,-4535.34,0.00039452,11]
[342927282,1732209080598,-500.0,0.00039452,11]
[342927283,1732209080607,-944.88,0.00039452,11]
[342927284,1732209080617,-500.0,0.00039452,11]
[342927285,1732209080626,-500.0,0.00039452,11]
[342927286,1732209080635,-500.0,0.00039452,11]
[342927287,1732209080645,-4492.75,0.00039452,11]
[342927288,1732209080657,-983.56,0.00039452,11]
[342927289,1732209080666,-976.54,0.00039452,11]
[342927290,1732209080676,-500.0,0.00039452,11]
[342927291,1732209080686,-500.0,0.00039452,11]
[342927292,1732209080695,-1954.58,0.00039452,11]
[342927293,1732209080704,-500.0,0.00039452,11]
[342927294,1732209080714,-500.0,0.00039452,11]
[342927295,1732209080729,-13523.53,0.00039452,11]
[342927296,1732209080738,-1112.73,0.00039452,11]
[342927297,1732209080748,-1072.76,0.00039452,11]
[342927298,1732209080758,-166.73,0.00039465,2]
[342927299,1732209080768,-190.34,0.0003948,120]
[342927300,1732209080777,-923.7,0.00039491,120]
[342927301,1732209080787,-17053.17369628,0.000395,120]
[342927302,1732209080796,-764.41,0.00039573,2]
[342927303,1732209080806,-603.92,0.00039573,2]
[342927304,1732209080816,-764.41,0.00039573,2]
[342927305,1732209080825,-764.41,0.00039573,2]
[342927306,1732209080834,-764.41,0.00039573,2]
[342927307,1732209080843,-764.41,0.00039573,2]
[342927308,1732209080853,-764.41,0.00039573,2]
[342927309,1732209080863,-764.41,0.00039573,2]
[342927310,1732209080873,-588.07,0.00039573,2]
[342927311,1732209080882,-158.33,0.00039671,2]
[342927312,1732209080891,-151.0,0.00039726,14]
[342927313,1732209080900,-500.0,0.00039726,11]
[342927314,1732209080918,-1056.25,0.00039726,11]
[342927315,1732209080938,-500.0,0.00039726,11]
[342927316,1732209080959,-648.09,0.00039726,11]
[342927317,1732209080985,-500.0,0.00039726,11]
[342927318,1732209081001,-574.75,0.00039726,11]
[342927319,1732209081020,-500.0,0.00039726,11]
[342927320,1732209081042,-805.26,0.00039726,11]
[342927321,1732209081062,-500.0,0.00039726,11]
[342927322,1732209081081,-482.2,0.00039726,11]
[342927323,1732209081102,-740.56,0.00039726,11]
[342927324,1732209081116,-500.0,0.00039726,11]
[342927325,1732209081135,-500.0,0.00039726,11]
[342927326,1732209081148,-500.0,0.00039726,11]
[342927327,1732209081166,-617.05528683,0.00039726,11]
[342927328,1732209081180,-500.0,0.00039726,11]
[342927329,1732209081197,-500.0,0.00039726,11]
[342927330,1732209081213,-500.0,0.00039726,11]
[342927331,1732209081232,-500.0,0.00039726,11]
[342927332,1732209081248,-500.0,0.00039726,11]
[342927333,1732209081264,-500.0,0.00039726,11]
[342927334,1732209081281,-500.0,0.00039726,11]
[342927335,1732209081296,-500.0,0.00039726,11]
[342927336,1732209081312,-1128.47,0.00039726,11]
[342927337,1732209081327,-500.0,0.00039726,11]
[342927338,1732209081343,-500.0,0.00039726,11]
[342927339,1732209081360,-500.0,0.00039726,11]
[342927340,1732209081375,-500.0,0.00039726,11]
[342927341,1732209081390,-500.0,0.00039726,11]
[342927342,1732209081405,-500.0,0.00039726,11]
[342927343,1732209081422,-1155.89,0.00039726,11]
[342927344,1732209081441,-537.39,0.00039726,11]
[342927345,1732209081457,-500.0,0.00039726,11]
[342927346,1732209081475,-500.0,0.00039726,11]
[342927347,1732209081490,-500.0,0.00039726,11]
[342927348,1732209081507,-500.0,0.00039726,11]
[342927349,1732209081522,-500.0,0.00039726,11]
[342927350,1732209081537,-500.0,0.00039726,11]
[342927351,1732209081553,-500.0,0.00039726,11]
[342927352,1732209081568,-500.0,0.00039726,11]
[342927353,1732209081584,-500.0,0.00039726,11]
[342927354,1732209081599,-500.0,0.00039726,11]
[342927355,1732209081615,-500.0,0.00039726,11]
[342927356,1732209081629,-578.69,0.00039726,11]
[342927357,1732209081643,-589.28,0.00039726,11]
[342927358,1732209081658,-632.39,0.00039726,11]
[342927359,1732209081674,-357.95,0.00039726,11]
[342927360,1732209081690,-500.0,0.00039726,11]
[342927361,1732209081706,-500.0,0.00039726,11]
[342927362,1732209081723,-500.0,0.00039726,11]
[342927363,1732209081738,-192.4,0.00039726,11]
[342927364,1732209081753,-779.64,0.00039726,11]
[342927365,1732209081767,-500.0,0.00039726,11]
[342927366,1732209081781,-500.0,0.00039726,11]
[342927367,1732209081796,-500.0,0.00039726,11]
[342927368,1732209081812,-500.0,0.00039726,11]
[342927369,1732209081827,-500.0,0.00039726,11]
[342927370,1732209081843,-500.0,0.00039726,11]
[342927371,1732209081858,-500.0,0.00039726,11]
[342927372,1732209081873,-500.0,0.00039726,11]
[342927373,1732209081888,-264.44,0.00039726,11]
[342927374,1732209081907,-500.0,0.00039726,11]
[342927375,1732209081922,-500.0,0.00039726,11]
[342927376,1732209081938,-290.19,0.00039726,11]
[342927377,1732209081954,-500.0,0.00039726,11]
[342927378,1732209081969,-500.0,0.00039726,11]
[342927379,1732209081986,-320.48,0.00039726,11]
[342927380,1732209082003,-500.0,0.00039726,11]
[342927381,1732209082018,-500.0,0.00039726,11]
[342927382,1732209082034,-500.0,0.00039726,11]
[342927383,1732209082050,-567.66771542,0.00039726,11]
[342927384,1732209082066,-500.0,0.00039726,11]
[342927385,1732209082082,-500.0,0.00039726,11]
[342927386,1732209082097,-500.0,0.00039726,11]
[342927387,1732209082112,-500.0,0.00039726,11]
[342927388,1732209082128,-610.1,0.00039726,11]
[342927389,1732209082144,-500.0,0.00039726,11]
[342927390,1732209082159,-500.0,0.00039726,11]
[342927391,1732209082175,-437.63161976,0.00039726,11]
[342927392,1732209082191,-500.0,0.00039726,11]
[342927393,1732209082206,-500.0,0.00039726,11]
[342927394,1732209082220,-500.0,0.00039726,11]
[342927395,1732209082239,-500.0,0.00039726,11]
[342927396,1732209082255,-500.0,0.00039726,11]
[342927397,1732209082271,-500.0,0.00039726,11]
[342927398,1732209082287,-500.0,0.00039726,11]
[342927399,1732209082302,-500.0,0.00039726,11]
[342927400,1732209082318,-896.48,0.00039726,7]
[342927401,1732209082333,-504.14,0.00039726,11]
[342927402,1732209082347,-500.0,0.00039726,11]
[342927403,1732209082361,-500.0,0.00039726,11]
[342927404,1732209082377,-500.0,0.00039726,11]
[342927405,1732209082394,-500.0,0.00039726,11]
[342927406,1732209082411,-500.0,0.00039726,11]
[342927407,1732209082424,-500.0,0.00039726,11]
[342927408,1732209082434,-500.0,0.00039726,11]
[342927409,1732209082444,-204.4,0.00039726,11]
[342927410,1732209082455,-943.58,0.00039726,11]
[342927411,1732209082464,-500.0,0.00039726,11]
[342927412,1732209082725,-500.0,0.00039726,11]
[342927413,1732209082744,-593.87,0.00039726,11]
[342927414,1732209082769,-500.0,0.00039726,11]
[342927415,1732209082784,-500.0,0.00039726,11]
[342927416,1732209082794,-500.0,0.00039726,11]
[342927417,1732209082803,-500.0,0.00039726,11]
[342927418,1732209082812,-943.2,0.00039726,11]
[342927419,1732209082822,-706.88,0.00039726,11]
[342927420,1732209082831,-848.88,0.00039726,11]
[342927421,1732209082841,-506.76,0.00039726,11]
[342927422,1732209082851,-763.5,0.00039726,11]
[342927423,1732209082860,-687.26,0.00039726,11]
[342927424,1732209082870,-500.0,0.00039726,11]
[342927425,1732209082880,-822.37,0.00039726,11]
[342927426,1732209082890,-500.0,0.00039726,11]
[342927427,1732209082899,-718.91,0.00039726,11]
[342927428,1732209082909,-1027.54,0.00039726,11]
[342927429,1732209082919,-500.0,0.00039726,11]
[342927430,1732209082929,-500.0,0.00039726,11]
[342927431,1732209082938,-559.94,0.00039726,11]
[342927432,1732209082949,-500.0,0.00039726,11]
[342927433,1732209082959,-500.0,0.00039726,11]
[342927434,1732209082969,-500.0,0.00039726,11]
[342927435,1732209082982,-500.0,0.00039726,11]
[342927436,1732209082992,-500.0,0.00039726,11]
[342927437,1732209083002,-500.0,0.00039726,11]
[342927438,1732209083012,-500.0,0.00039726,11]
[342927439,1732209083022,-755.73,0.00039726,11]
[342927440,1732209083031,-500.0,0.00039726,11]
[342927441,1732209083041,-500.0,0.00039726,11]
[342927442,1732209083050,-500.0,0.00039726,11]
[342927443,1732209083059,-500.0,0.00039726,11]
[342927444,1732209083069,-500.0,0.00039726,11]
[342927445,1732209083078,-562.56,0.00039726,11]
[342927446,1732209083087,-559.1,0.00039726,11]
[342927447,1732209083097,-500.0,0.00039726,11]
[342927448,1732209083106,-319.44725996,0.00039726,11]
[342927449,1732209083116,-1000.0,0.00039726,11]
[342927450,1732209083126,-578.57,0.00039726,11]
[342927451,1732209083136,-500.0,0.00039726,11]
[342927452,1732209083145,-802.57,0.00039726,11]
[342927453,1732209083154,-500.0,0.00039726,11]
[342927454,1732209083163,-683.75,0.00039726,11]
[342927455,1732209083173,-500.0,0.00039726,11]
[342927456,1732209083183,-793.1,0.00039726,11]
[342927457,1732209083192,-500.0,0.00039726,11]
[342927458,1732209083202,-500.0,0.00039726,11]
[342927459,1732209083212,-500.0,0.00039726,11]
[342927460,1732209083223,-500.0,0.00039726,11]
[342927461,1732209083234,-500.0,0.00039726,11]
[342927462,1732209083243,-743.18,0.00039726,11]
[342927463,1732209083253,-619.84,0.00039726,11]
[342927464,1732209083262,-623.3,0.00039726,11]
[342927465,1732209083272,-529.51,0.00039726,11]
[342927466,1732209083281,-500.0,0.00039726,11]
[342927467,1732209083290,-500.0,0.00039726,11]
[342927468,1732209083300,-533.23,0.00039726,11]
[342927469,1732209083309,-748.1,0.00039726,11]
[342927470,1732209083318,-500.0,0.00039726,11]
[342927471,1732209083328,-660.87,0.00039726,11]
[342927472,1732209083338,-500.0,0.00039726,11]
[342927473,1732209083347,-500.0,0.00039726,11]
[342927474,1732209083356,-500.0,0.00039726,11]
[342927475,1732209083366,-500.0,0.00039726,11]
[342927476,1732209083375,-500.0,0.00039726,11]
[342927477,1732209083384,-500.0,0.00039726,11]
[342927478,1732209083394,-500.0,0.00039726,11]
[342927479,1732209083403,-500.0,0.00039726,11]
[342927480,1732209083414,-500.0,0.00039726,11]
[342927481,1732209083424,-431.96468757,0.00039726,11]
[342927482,1732209083436,-667.02,0.00039726,11]
[342927483,1732209083446,-592.78,0.00039726,11]
[342927484,1732209083455,-500.0,0.00039726,11]
[342927485,1732209083465,-500.0,0.00039726,11]
[342927486,1732209083477,-500.0,0.00039726,11]
[342927487,1732209083487,-245.62961506,0.00039726,11]
[342927488,1732209083497,-817.96,0.00039726,11]
[342927489,1732209083508,-500.0,0.00039726,11]
[342927490,1732209083518,-811.48,0.00039726,11]
[342927491,1732209083527,-500.0,0.00039726,11]
[342927492,1732209083536,-500.0,0.00039726,11]
[342927493,1732209083546,-500.0,0.00039726,7]
[342927494,1732209083557,-500.0,0.00039726,11]
[342927495,1732209083567,-500.0,0.00039726,11]
[342927496,1732209083576,-500.0,0.00039726,11]
[342927497,1732209083586,-500.0,0.00039726,11]
[342927498,1732209083595,-500.0,0.00039726,11]
[342927499,1732209083604,-500.0,0.00039726,11]
[342927500,1732209083614,-500.0,0.00039726,11]
[342927501,1732209083623,-993.44,0.00039726,11]
[342927502,1732209083632,-664.21,0.00039726,11]
[342927503,1732209083641,-204.28051635,0.00039726,11]
[342927504,1732209083651,-500.0,0.00039726,11]
[342927505,1732209083660,-500.0,0.00039726,11]
[342927506,1732209083670,-500.0,0.00039726,11]
[342927507,1732209083679,-500.0,0.00039726,11]
[342927508,1732209083688,-608.29,0.00039726,11]
[342927509,1732209083698,-500.0,0.00039726,11]
[342927510,1732209083708,-500.0,0.00039726,11]
[342927511,1732209083717,-500.0,0.00039726,11]
[342927512,1732209083730,-500.0,0.00039726,11]
[342927513,1732209083740,-500.0,0.00039726,11]
[342927514,1732209083749,-500.4683465,0.00039726,11]
[342927515,1732209083759,-500.0,0.00039726,11]
[342927516,1732209083768,-805.63,0.00039726,11]
[342927517,1732209083778,-500.0,0.00039726,11]
[342927518,1732209083787,-500.0,0.00039726,11]
[342927519,1732209083797,-500.0,0.00039726,11]
[342927520,1732209083807,-1092.26,0.00039726,11]
[342927521,1732209083817,-500.0,0.00039726,11]
[342927522,1732209083829,-500.0,0.00039726,11]
[342927523,1732209083839,-500.0,0.00039726,11]
[342927524,1732209083848,-500.0,0.00039726,11]
[342927525,1732209083858,-643.94,0.00039726,11]
[342927526,1732209083867,-500.0,0.00039726,11]
[342927527,1732209083876,-456.04468647,0.00039726,11]
[342927528,1732209083886,-500.0,0.00039726,11]
[342927529,1732209083895,-851.08,0.00039726,11]
[342927530,1732209083905,-500.0,0.00039726,11]
[342927531,1732209083914,-825.54,0.00039726,11]
[342927532,1732209083923,-500.0,0.00039726,11]
[342927533,1732209083933,-500.0,0.00039726,11]
[342927534,1732209083943,-500.0,0.00039726,11]
[342927535,1732209083952,-510.15,0.00039726,11]
[342927536,1732209083965,-500.0,0.00039726,11]
[342927537,1732209083976,-500.0,0.00039726,11]
[342927538,1732209083986,-500.0,0.00039726,11]
[342927539,1732209083996,-589.93,0.00039726,11]
[342927540,1732209084005,-500.0,0.00039726,11]
[342927541,1732209084014,-1030.83,0.00039726,11]
[342927542,1732209084024,-833.36,0.00039726,11]
[342927543,1732209084033,-223.01,0.00039726,11]
[342927544,1732209084042,-861.33,0.00039726,11]
[342927545,1732209084052,-500.0,0.00039726,11]
[342927546,1732209084061,-500.0,0.00039726,11]
[342927547,1732209084070,-500.0,0.00039726,11]
[342927548,1732209084080,-783.55,0.00039726,11]
[342927549,1732209084092,-500.0,0.00039726,11]
[342927550,1732209084102,-500.0,0.00039726,11]
[342927551,1732209084111,-500.0,0.00039726,11]
[342927552,1732209084120,-500.0,0.00039726,11]
[342927553,1732209084129,-500.0,0.00039726,11]
[342927554,1732209084139,-550.09,0.00039726,11]
[342927555,1732209084148,-500.0,0.00039726,11]
[342927556,1732209084157,-500.0,0.00039726,11]
[342927557,1732209084167,-230.55,0.00039726,11]
[342927558,1732209084177,-500.0,0.00039726,11]
[342927559,1732209084186,-500.0,0.00039726,11]
[342927560,1732209084196,-218.33,0.00039726,11]
[342927561,1732209084205,-1697.17,0.00039726,11]
[342927562,1732209084215,-500.0,0.00039726,11]
[342927563,1732209084226,-500.0,0.00039726,11]
[342927564,1732209084236,-520.06,0.00039726,11]
[342927565,1732209084245,-500.0,0.00039726,11]
[342927566,1732209084254,-500.0,0.00039726,11]
[342927567,1732209084263,-461.09733852,0.00039726,11]
[342927568,1732209084273,-202.2,0.00039726,11]
[342927569,1732209084283,-500.0,0.00039726,11]
[342927570,1732209084292,-500.0,0.00039726,11]
[342927571,1732209084302,-557.33,0.00039726,11]
[342927572,1732209084311,-811.45,0.00039726,11]
[342927573,1732209084320,-500.0,0.00039726,11]
[342927574,1732209084329,-500.0,0.00039726,11]
[342927575,1732209084339,-500.0,0.00039726,11]
[342927576,1732209084348,-500.0,0.00039726,11]
[342927577,1732209084357,-500.0,0.00039726,11]